[Event "16th Serbian Championship 2022"]
[Site "Bajina Basta"]
[Date "2022.12.06"]
[Round "1.1"]
[White "Djordjevic, Vuk"]
[Black "Martic, Ivan"]
[Result "0-1"]
[ECO "D00"]
[WhiteElo "2394"]
[BlackElo "2270"]
[Annotator "TA"]
[PlyCount "50"]
[EventDate "2022.12.06"]
[EventType "tourn"]
[EventCountry "SRB"]
[SourceTitle "playchess.com"]
[Source "ChessBase"]
[SourceQuality "1"]
[TimeControl "40/5400+30:1800+30"]

{[%evp 9,49,9,6,14,39,14,5,-3,-16,-8,5,-16,49,49,40,35,29,-8,-25,-38,-43,-55,-25,-59,-35,-114,-122,-229,-218,-438,-414,-393,-397,-29986,-29987,-29985,-29986,-29992,-29993,-29993,-29994,-29999]} 1. d4 {[%emt 0:00:14]} Nf6 {[%emt 0:00:14]} 2. Bg5 {[%emt 0:00:27]} d5 {[%emt 0:00:21]} 3. e3 {[%emt 0:01:01]} c5 {[%emt 0:00:29]} 4. Bxf6 {[%emt 0:00:28]} gxf6 {[%emt 0:00:08]} 5. dxc5 {[%emt 0:00:42]} Nc6 {[%emt 0:00:18]} 6. Bb5 {[%emt 0:10:50] D00: 1 d4 d5: Unusual lines.} a6 {[%emt 0:06:55]} 7. Bxc6+ {[%emt 0:06:20]} bxc6 {[%emt 0:00:07]} 8. Nc3 {[%emt 0:02:39] [#] The position is equal.} e5 $146 {[%emt 0:06:07]} ({Predecessor:} 8... Qa5 9. Qd4 Rb8 10. O-O-O Rb4 11. Qd2 Qxc5 12. Nge2 e5 13. f4 Qb6 14. b3 Bc5 {0-1 (28) Reinert,S (2097)-Suvorov,A (2392) Tegernsee 2021}) 9. Na4 {[%emt 0:24:56]} Rg8 {[%emt 0:09:33]} 10. Ne2 {[%emt 0:05:01] [#]} (10. Nb6 Rb8 11. b4 Rxg2 $15) 10... Bxc5 $1 {[%emt 0:13:21]} 11. Nxc5 $14 {[%emt 0:00:43]} Qa5+ {[%emt 0:00:09]} 12. Qd2 {[%emt 0:04:27]} Qxc5 {[%emt 0:00:08]} 13. Ng3 {[%emt 0:01:48]} h5 {[%emt 0:05:30] ...h4 is the strong threat.} 14. O-O-O {[%emt 0:13:01]} Ke7 {[%emt 0:07:29] Strongly threatening ...h4.} 15. h4 {[%emt 0:10:51]} Rg4 {[%emt 0:11:05]} (15... Be6 {simplifies} 16. Rdf1 Rg4 17. Nxh5 Ra4) 16. Kb1 {[%emt 0:03:23]} Rb8 {[%emt 0:00:56]} (16... Be6 {simplifies} 17. Nxh5 Rxg2 18. Rdf1 Rag8) 17. e4 {[%emt 0:07:38]} (17. b3 $1 $15) 17... Be6 $17 {[%emt 0:00:20]} 18. Nxh5 {[%emt 0:04:12]} (18. Rde1 $17) 18... Rxe4 $40 {[%emt 0:13:11][%mdl 128] White is in trouble. Active counter play!} ({Stronger than} 18... dxe4 19. b3) 19. f3 {[%emt 0:00:45] [#] Against Bg4} (19. b3 {is a better defense.}) 19... Qa3 $1 {[%emt 0:02:51][%csl Gb8][%cal Ra3b2]} 20. b3 {[%emt 0:00:29]} Ra4 {[%emt 0:07:16] The board is on fire.} 21. c3 $2 {[%emt 0:00:32] [#]} (21. Qc3 $19 Qxa2+ 22. Kc1 Qa3+ 23. Qb2 Rxb3 24. Qxa3+ (24. cxb3 $2 {perishes.} Qc5+ 25. Kd2 Ra2 $19) 24... Rbxa3 25. Ng3) 21... Rxb3+ $1 {[%emt 0:00:56][%mdl 512] Black mates.} 22. Ka1 {[%emt 0:00:08]} d4 {[%emt 0:02:02][%cal Bd5d4,Bd4c3][%mdl 32]} 23. Rb1 {[%emt 0:00:53]} Rxb1+ {[%emt 0:01:00]} 24. Kxb1 {[%emt 0:00:03]} dxc3 {[%emt 0:00:20]} 25. Qe3 {[%emt 0:00:34]} Qb2# {[%emt 0:00:07] Weighted Error Value: White=0.67/Black=0.09 (flawless)} 0-1

[Event "16th Serbian Championship 2022"]
[Site "Bajina Basta"]
[Date "2022.12.06"]
[Round "1.2"]
[White "Ivic, Velimir"]
[Black "Kovacevic, Aleksandar"]
[Result "1-0"]
[ECO "E45"]
[WhiteElo "2560"]
[BlackElo "2470"]
[Annotator "TA"]
[PlyCount "89"]
[EventDate "2022.12.06"]
[EventType "tourn"]
[EventCountry "SRB"]
[SourceTitle "playchess.com"]
[Source "ChessBase"]
[SourceQuality "1"]
[TimeControl "40/5400+30:1800+30"]

{[%evp 14,89,-5,-10,-10,-6,0,-7,0,0,0,-14,-13,-12,-14,-22,0,-6,-6,0,10,8,8,0,14,14,14,14,15,15,15,7,15,0,15,17,32,7,22,0,0,0,0,0,0,0,0,0,7,8,2,0,99,104,102,98,107,58,178,110,214,201,539,167,375,354,408,335,334,332,332,312,410,402,370,327,305,311]} 1. d4 {[%emt 0:00:06]} Nf6 {[%emt 0:00:25]} 2. c4 {[%emt 0:00:12]} e6 {[%emt 0:00:18]} 3. Nc3 {[%emt 0:00:19]} Bb4 {[%emt 0:00:51]} 4. e3 {[%emt 0:00:41]} b6 {[%emt 0:01:09]} 5. Nge2 {[%emt 0:01:24]} Ba6 {[%emt 0:02:20]} 6. a3 {[%emt 0:01:42]} Be7 {[%emt 0:03:24]} 7. Ng3 {[%emt 0:06:00]} d5 {[%emt 0:01:55]} 8. cxd5 {[%emt 0:08:57][%cal Od5d6] Hoping for d6!} Bxf1 {[%emt 0:00:21] E45: Nimzo-Indian: Rubinstein: 4...b6 5 Ne2 Ba6.} 9. Kxf1 {[%emt 0:00:25]} exd5 {[%emt 0:09:52]} 10. Nf5 {[%emt 0:04:23] e4 is the strong threat.} g6 {[%emt 0:05:12] Prevents e4. The position is equal.} 11. Nxe7 {[%emt 0:00:27]} Qxe7 {[%emt 0:00:07] [#]} 12. Qf3 $146 {[%emt 0:07:34]} ({Predecessor:} 12. g3 O-O 13. Kg2 Nc6 14. b4 Rfe8 15. Qb3 Qd7 16. Bd2 Ne7 17. Rac1 c6 18. b5 {½-½ (44) Makarczyk,K-Regedzinski,T Katowice 1952}) 12... c6 {[%emt 0:02:09]} 13. Bd2 {[%emt 0:03:24]} O-O {[%emt 0:01:56]} 14. Ke2 {[%emt 0:02:12]} Nbd7 {[%emt 0:04:23]} 15. Rhd1 {[%emt 0:01:14]} Rfe8 {[%emt 0:06:19]} 16. Kf1 {[%emt 0:03:05]} a5 {[%emt 0:06:58]} 17. a4 {[%emt 0:10:07]} Ne4 {[%emt 0:06:27]} 18. Be1 {[%emt 0:06:48]} Nxc3 {[%emt 0:10:28]} 19. Bxc3 {[%emt 0:00:24]} Nf6 {[%emt 0:00:37]} 20. Rac1 {[%emt 0:01:52]} Ne4 {[%emt 0:00:52]} 21. Be1 {[%emt 0:00:20]} Qb7 {[%emt 0:02:05]} 22. Qe2 {[%emt 0:04:43]} Re6 {[%emt 0:00:36]} 23. Rc2 {[%emt 0:00:52]} Rae8 {[%emt 0:02:15]} 24. Kg1 {[%emt 0:00:47]} g5 {[%emt 0:04:33]} 25. Qg4 {[%emt 0:05:40]} Rg6 {[%emt 0:00:57][%cal Of7f5]} 26. Rdc1 {[%emt 0:04:19]} Ree6 {[%emt 0:00:36]} 27. f3 {[%emt 0:03:11]} Nf6 {[%emt 0:01:17][%csl LRe3,LRg4]} 28. Qf5 {[%emt 0:00:11]} Rxe3 {[%emt 0:15:38]} 29. Bd2 {[%emt 0:02:04]} Re6 {[%emt 0:00:09]} 30. Bxg5 {[%emt 0:00:46]} Qe7 {[%emt 0:01:48]} 31. Kf1 {[%emt 0:04:23]} Qd7 {[%emt 0:05:00][%cal Oe6e1] Threatens to win with ...Re1+!} 32. g4 {[%emt 0:02:55]} (32. Qf4 {seems wilder.} Nh5 33. Qd2 Qc7 34. g4) 32... c5 {[%emt 0:02:45]} (32... h5 $11) 33. dxc5 $16 {[%emt 0:02:01]} bxc5 {[%emt 0:00:01]} 34. Rxc5 {[%emt 0:00:56] aiming for Rc8+.} Qxa4 {[%emt 0:00:06] [#]} 35. Bh4 {[%emt 0:01:53]} (35. h3 $1 $16) 35... Qb4 {[%emt 0:02:37] [#]} ({Better is} 35... Qb3 $1 $14) 36. R5c2 {[%emt 0:04:59]} (36. R1c2 $1 $18) 36... d4 {[%emt 0:00:29]} (36... Qb3 $16) 37. Bf2 $18 {[%emt 0:02:08]} Rd6 $2 {[%emt 0:00:31]} (37... Re7 {is tougher.} 38. Rd1 Qd6) 38. Qd3 $2 {[%emt 0:02:41]} (38. g5) 38... Nd7 $2 {[%emt 0:00:49]} (38... Qb7 39. Rc8+ (39. Bxd4 Rxd4 40. Qxd4 Qxf3+ 41. Qf2 Qxg4 $11) 39... Kg7) 39. Rc8+ {[%emt 0:00:33]} Nf8 {[%emt 0:01:07]} 40. Ra8 {[%emt 0:01:39]} Rc6 {[%emt 0:00:31]} (40... Qxb2 $2 41. Rcc8 Kg7 42. Rxf8 $18) 41. Rxc6 {[%emt 0:31:58]} Rxc6 {[%emt 0:30:04]} 42. Qxd4 {[%emt 0:00:00]} Rc1+ {[%emt 0:00:00]} 43. Kg2 {[%emt 0:00:00]} Rc2 {[%emt 0:00:00]} 44. Qxb4 {[%emt 0:00:00]} axb4 {[%emt 0:00:00]} 45. Kg3 {[%emt 0:00:00] Weighted Error Value: White=0.31/Black=0.43} 1-0

[Event "16th Serbian Championship 2022"]
[Site "Bajina Basta"]
[Date "2022.12.06"]
[Round "1.3"]
[White "Perunovic, Milos"]
[Black "Radovanovic, Nikola"]
[Result "1-0"]
[ECO "B90"]
[WhiteElo "2541"]
[BlackElo "2414"]
[Annotator "TA"]
[PlyCount "75"]
[EventDate "2022.12.06"]
[EventType "tourn"]
[EventCountry "SRB"]
[SourceTitle "playchess.com"]
[Source "ChessBase"]
[SourceQuality "1"]
[TimeControl "40/5400+30:1800+30"]

{[%evp 13,75,15,21,20,23,10,24,12,18,0,31,30,25,37,33,32,47,59,62,51,63,15,23,13,13,0,25,13,118,0,0,0,59,52,64,51,59,42,203,206,258,245,404,399,378,373,728,391,2010,2006,5418,3352,1948,5077,1342,1239,1210,3361,2944,469,1952,1854,1776,1681]} 1. e4 {[%emt 0:00:07]} c5 {[%emt 0:00:06]} 2. Nf3 {[%emt 0:00:29]} d6 {[%emt 0:00:09]} 3. d4 {[%emt 0:00:46]} cxd4 {[%emt 0:00:07]} 4. Nxd4 {[%emt 0:00:08]} Nf6 {[%emt 0:00:06]} 5. Nc3 {[%emt 0:00:07]} a6 {[%emt 0:00:11]} 6. Be3 {[%emt 0:06:34]} e5 {[%emt 0:00:54]} 7. Nb3 {[%emt 0:00:07]} Be7 {[%emt 0:01:09]} 8. h3 {[%emt 0:00:52] B90: Sicilian Najdorf: Unusual White 6th moves, 6 Be3 Ng4 and 6 Be3 e5.} h6 {[%emt 0:02:00]} 9. g4 {[%emt 0:12:40]} Qc7 {[%emt 0:04:53]} 10. Qd2 {[%emt 0:03:47] White has an edge.} b5 {[%emt 0:01:53]} 11. O-O-O {[%emt 0:09:09] [#]} Bb7 $146 {[%emt 0:04:55]} ({Predecessor:} 11... Nbd7 12. Nd5 Nxd5 13. exd5 Nb6 14. Rg1 Bd7 15. Kb1 Rc8 16. Nc5 dxc5 17. d6 Bxd6 18. Qxd6 {½-½ (38) Serazeev,A (2527)-Mikhalchuk,V (2464) ICCF email 2017}) 12. Nd5 {[%emt 0:05:18]} Nxd5 {[%emt 0:08:14]} 13. exd5 {[%emt 0:00:14]} Nd7 {[%emt 0:00:23]} 14. Na5 {[%emt 0:05:39]} Rc8 {[%emt 0:09:51][%cal Ob7d5] Hoping for ...Bxd5!} 15. Nxb7 {[%emt 0:11:50]} Qxb7 {[%emt 0:00:19]} 16. h4 {[%emt 0:00:22]} Bd8 $1 {[%emt 0:10:05]} 17. Bh3 {[%emt 0:12:49]} (17. Kb1 $14) 17... Bb6 $11 {[%emt 0:11:42]} 18. g5 {[%emt 0:01:10]} Bxe3 {[%emt 0:03:45]} 19. fxe3 {[%emt 0:03:20]} Rc7 {[%emt 0:13:08]} 20. Kb1 {[%emt 0:04:56]} Nc5 {[%emt 0:02:46]} (20... h5 $11) 21. Qg2 {[%emt 0:03:56]} ({White must play} 21. gxh6 $1 $16 Rxh6 22. h5) 21... h5 {[%emt 0:01:41]} 22. Rhf1 {[%emt 0:00:09][%cal Bh1f1,Bf1f5,Bf5h5][%mdl 32]} b4 {[%emt 0:02:23]} (22... Qb6 $11) 23. g6 $14 {[%emt 0:03:31]} f6 {[%emt 0:05:41]} 24. Rf5 $1 {[%emt 0:00:16] White is more active.} a5 {[%emt 0:03:54][%cal Ob4b3]} 25. Qf3 {[%emt 0:00:11] Against b3} b3 $2 {[%emt 0:02:45] This costs Black the game.} (25... e4 $14 26. Qe2 Qa6) 26. cxb3 $18 {[%emt 0:01:25]} (26. Rxh5 $2 bxc2+ 27. Kxc2 Rf8 $19) (26. axb3 Rf8 27. Rxh5 a4 $11) 26... a4 {[%emt 0:00:17]} 27. Rxh5 {[%emt 0:02:30]} Rf8 {[%emt 0:00:13]} (27... Rg8 {was necessary.} 28. Rh7 Qb5) 28. Rh7 {[%emt 0:00:57] aiming for Qh5.} axb3 {[%emt 0:00:44]} 29. a3 {[%emt 0:00:05] Black must now prevent Qh5.} f5 $2 {[%emt 0:03:18]} (29... Qb5 30. Bf5 Kd8) 30. Bxf5 {[%emt 0:03:39] Threatens to win with Qh5.} e4 $2 {[%emt 0:02:16]} (30... Qb5 31. Qh5 Kd8) 31. Qh5 $1 {[%emt 0:02:02] Rh8 would kill now. White is clearly winning.} (31. Bxe4 $2 Rxf3 32. Bxf3 Qb5 33. Rh8+ Ke7 $19) 31... Na4 {[%emt 0:02:23]} 32. Rh8 {[%emt 0:00:51] Intending Rxf8+ and mate.} (32. Bxe4 Rc2 $1 {[%mdl 512]} 33. Ka1 Rxb2 34. Rh8 Ra2+ 35. Kb1 Nc3+ 36. Kc1 b2+ 37. Kd2 b1=Q+ 38. Ke1 Qxd1+ 39. Qxd1 Nxd1 40. Rh5 Qb2 $1) 32... Rc2 {[%emt 0:00:31]} 33. Rxf8+ {[%emt 0:00:09]} (33. Bxe4 Rxb2+ 34. Ka1 Ra2+ 35. Kb1 Nc3+ 36. Kc1 b2+ 37. Kd2 b1=Q+ 38. Ke1 Qxd1+ 39. Qxd1 Nxd1 40. Rh5 Qb3) 33... Kxf8 {[%emt 0:00:07]} 34. Qh8+ {[%emt 0:00:05]} (34. Bxe4 Rxb2+ 35. Ka1 Ra2+ 36. Kb1 Nc3+ 37. Kc1 b2+ 38. Kd2 b1=Q+ 39. Ke1 Qxd1+ 40. Qxd1 Nxd1 41. Bh1 {[#]} Qb2 $1 42. Bf3 Qf2+ 43. Kxd1 Qg1#) 34... Ke7 {[%emt 0:00:06]} 35. Qxg7+ {[%emt 0:00:04]} (35. Bxe4 Rxb2+ 36. Ka1 Ra2+ 37. Kb1 Nc3+ 38. Kc1 b2+ 39. Kd2 b1=Q+ 40. Kxc3 Qc7+ 41. Kd4 Qc5#) 35... Kd8 {[%emt 0:00:41]} 36. Qf8+ {[%emt 0:02:36]} (36. Qxb7 Rxb2+ 37. Ka1 Ra2+ 38. Kb1 Nc3+ 39. Kc1 Rc2#) 36... Kc7 {[%emt 0:00:08]} 37. Rc1 {[%emt 0:01:09] Threatening mate with Qe7+.} (37. Bxe4 Rxb2+ 38. Kc1 Re2 $16) 37... Qa6 {[%emt 0:01:55] [#]} 38. Qc8+ $1 {[%emt 0:00:36][%mdl 512] Weighted Error Value: White=0.29 (precise) /Black=0.33} 1-0

[Event "16th Serbian Championship 2022"]
[Site "Bajina Basta"]
[Date "2022.12.06"]
[Round "1.4"]
[White "Bogosavljevic, Boban"]
[Black "Indjic, Aleksandar"]
[Result "1/2-1/2"]
[ECO "D02"]
[WhiteElo "2521"]
[BlackElo "2631"]
[Annotator "TA"]
[PlyCount "117"]
[EventDate "2022.12.06"]
[EventType "tourn"]
[EventCountry "SRB"]
[SourceTitle "playchess.com"]
[Source "ChessBase"]
[SourceQuality "1"]
[TimeControl "40/5400+30:1800+30"]

{[%evp 13,117,19,7,0,0,0,8,0,6,6,0,0,23,8,8,9,7,16,13,0,0,0,0,-5,-4,-11,-4,-4,-4,-18,0,0,2,4,4,0,0,-10,-8,-8,-7,-14,-16,-38,-32,-35,-32,-43,-45,-50,-43,-78,-64,-68,-39,-49,-33,-33,-33,-33,-33,-63,-34,-217,-58,-59,-59,-95,-106,-96,-114,-104,-106,-161,-2,-2,-2,-8,-8,-11,-8,-2,0,0,-2,-2,-2,-14,-11,-16,-17,-19,0,0,0,0,0,0,0,0,0,0,0,0,0,0]} 1. d4 {[%emt 0:00:05]} Nf6 {[%emt 0:00:15]} 2. Nf3 {[%emt 0:00:06]} e6 {[%emt 0:00:21]} 3. g3 {[%emt 0:00:10]} c5 {[%emt 0:00:43]} 4. Bg2 {[%emt 0:00:06]} cxd4 {[%emt 0:00:29]} 5. O-O {[%emt 0:00:07]} d5 {[%emt 0:00:57]} 6. Nxd4 {[%emt 0:00:06]} e5 {[%emt 0:01:13]} 7. Nb3 {[%emt 0:00:17]} Be6 {[%emt 0:02:51]} 8. c4 {[%emt 0:00:25] D02: 1 d4 d5 2 Nf3 sidelines, including 2...Nf6 3 g3 and 2...Nf6 3 Bf4.} Nc6 {[%emt 0:01:25]} (8... dxc4 $2 9. Qxd8+ Kxd8 10. Bxb7 $18 (10. Na5 Nc6 $16)) 9. cxd5 {[%emt 0:00:16]} Nxd5 {[%emt 0:00:55]} 10. N1d2 {[%emt 0:00:13]} Be7 {[%emt 0:17:55]} 11. Ne4 $1 {[%emt 0:00:49]} b6 {[%emt 0:00:49] Inhibits Nec5.} (11... Qb6 {seems wilder.} 12. Ng5 Bxg5 13. Bxg5 h6) 12. Nc3 {[%emt 0:03:55][%cal Rc3d5]} Ncb4 {[%emt 0:00:16]} 13. a3 {[%emt 0:44:27]} Nxc3 {[%emt 0:00:54]} 14. bxc3 {[%emt 0:00:11]} Qxd1 {[%emt 0:07:48]} 15. Rxd1 {[%emt 0:02:13] [#]} Rc8 $146 {[%emt 0:00:05]} ({Predecessor:} 15... Bxb3 16. Bxa8 Bxd1 17. axb4 O-O 18. Bf3 e4 19. Bxe4 Bxe2 20. Rxa7 Bf6 21. Bb2 g5 {1-0 (32) Negrean,A (1846)-Vaduva,I (1473) Cap Aurora 2022}) 16. cxb4 {[%emt 0:23:23] And now Bd5 would win.} Bxb3 {[%emt 0:00:31]} 17. Rd3 {[%emt 0:00:16]} Be6 {[%emt 0:01:33]} 18. Bb2 {[%emt 0:00:54]} f6 {[%emt 0:00:08]} 19. Rc1 {[%emt 0:03:52] Prevents Rc2.} Rxc1+ {[%emt 0:01:14]} 20. Bxc1 {[%emt 0:00:04]} Kf7 {[%emt 0:00:06]} 21. Bb7 {[%emt 0:01:46] Inhibits Rc8.} Rb8 {[%emt 0:00:17]} 22. Ba6 {[%emt 0:05:16]} Bf5 {[%emt 0:03:28]} 23. Rc3 {[%emt 0:01:28]} Bd6 {[%emt 0:00:08]} 24. Bc4+ {[%emt 0:02:49]} Be6 {[%emt 0:01:22]} 25. Be3 {[%emt 0:01:19]} Bxc4 {[%emt 0:00:27]} 26. Rxc4 $11 {[%emt 0:00:07][%mdl 4096] Endgame KRB-KRB} Ke6 {[%emt 0:00:17]} 27. Kg2 {[%emt 0:02:45]} Kd5 {[%emt 0:01:18]} 28. Rc2 {[%emt 0:01:08]} a5 {[%emt 0:01:38]} 29. Bd2 {[%emt 0:01:22]} axb4 {[%emt 0:05:09]} 30. axb4 {[%emt 0:00:11]} f5 {[%emt 0:10:56]} 31. Be1 {[%emt 0:00:56]} Ra8 {[%emt 0:00:51]} 32. Rd2+ {[%emt 0:00:49]} Ke6 {[%emt 0:00:07]} 33. Rc2 {[%emt 0:00:14]} Kd7 {[%emt 0:04:46]} (33... Ra1 $5 {[%cal Ra1e1]} 34. Bc3 Rb1 $17) 34. e4 {[%emt 0:00:48]} g6 {[%emt 0:01:03]} 35. exf5 {[%emt 0:01:03]} gxf5 {[%emt 0:00:02]} 36. Rc4 {[%emt 0:01:30]} e4 {[%emt 0:03:29]} 37. h3 {[%emt 0:02:42]} b5 {[%emt 0:02:19]} 38. Rd4 {[%emt 0:00:14] [#]} (38. Rc2 $15) 38... Ke6 $2 {[%emt 0:00:40]} (38... Ra1 $1 $19 {[%cal Ra1e1]} 39. Bd2 Rd1) 39. g4 $1 $15 {[%emt 0:00:12]} Rg8 $1 {[%emt 0:07:09]} 40. Kf1 {[%emt 0:00:43]} Ke5 {[%emt 0:06:00]} ({But not} 40... fxg4 $6 41. Rxe4+ Kf5 42. Re3 $11) 41. Bc3 {[%emt 0:07:23] Threatens to win with Rd2+.} fxg4 {[%emt 0:00:27]} 42. hxg4 {[%emt 0:00:47]} Rxg4 {[%emt 0:00:30]} 43. f3 {[%emt 0:05:26] [#]} (43. Rd3+ $17 {might work better.} Ke6 44. Rh3) 43... Rg3 $2 {[%emt 0:09:26]} (43... exf3 $2 44. Rxg4+ Kd5 45. Kf2 $18) (43... Rf4 $1 $19 {[%cal Rf4f3]} 44. Rxe4+ Kd5) 44. Rxe4+ $11 {[%emt 0:00:44] The position is equal.} Kd5 {[%emt 0:00:14]} 45. Kf2 {[%emt 0:02:07] Black must now prevent Rd4+.} Rh3 {[%emt 0:00:16]} 46. Rd4+ {[%emt 0:01:55]} Kc6 {[%emt 0:00:07]} 47. Re4 {[%emt 0:00:10]} Rh2+ {[%emt 0:02:29]} 48. Ke3 {[%emt 0:00:32]} Rh1 {[%emt 0:00:06]} 49. Kd3 {[%emt 0:02:35]} h5 {[%emt 0:01:21] ...h4 is the strong threat.} 50. Be1 {[%emt 0:02:04] Inhibits h4.} Kd5 {[%emt 0:03:50]} 51. Rd4+ {[%emt 0:00:24]} Ke6 {[%emt 0:00:23]} 52. Re4+ {[%emt 0:00:04]} Kf5 {[%emt 0:00:16]} 53. Kd4 {[%emt 0:01:12]} Rf1 {[%emt 0:02:25]} 54. Kd5 {[%emt 0:00:18]} Bf4 {[%emt 0:08:47]} 55. Kc6 {[%emt 0:01:00]} Rxf3 {[%emt 0:00:08]} 56. Re8 {[%emt 0:00:05]} Re3 {[%emt 0:01:25]} 57. Rxe3 {[%emt 0:00:42]} Bxe3 {[%emt 0:00:05]} 58. Kxb5 {[%emt 0:00:05]} Kg4 {[%emt 0:00:06]} 59. Kc6 {[%emt 0:00:14] Weighted Error Value: White=0.13 (very precise) /Black=0.12 (very precise)} 1/2-1/2

[Event "16th Serbian Championship 2022"]
[Site "Bajina Basta"]
[Date "2022.12.06"]
[Round "1.5"]
[White "Perunovic, Miodrag"]
[Black "Ivanisevic, Ivan"]
[Result "0-1"]
[ECO "B47"]
[WhiteElo "2417"]
[BlackElo "2533"]
[Annotator "TA"]
[PlyCount "60"]
[EventDate "2022.12.06"]
[EventType "tourn"]
[EventCountry "SRB"]
[SourceTitle "playchess.com"]
[Source "ChessBase"]
[SourceQuality "1"]
[TimeControl "40/5400+30:1800+30"]

{[%evp 17,60,66,45,47,55,51,52,35,52,38,45,52,42,-36,-19,-6,-16,-18,-25,-37,-30,-90,-91,-125,0,0,0,0,22,0,0,-103,-102,-97,-102,-337,-282,-267,-264,-575,-558,-567,-556,-522,-487]} 1. e4 {[%emt 0:00:12]} c5 {[%emt 0:00:07]} 2. Nf3 {[%emt 0:00:24]} e6 {[%emt 0:00:16]} 3. d4 {[%emt 0:00:11]} cxd4 {[%emt 0:00:06]} 4. Nxd4 {[%emt 0:00:07]} Nc6 {[%emt 0:00:06]} 5. Nc3 {[%emt 0:00:09]} Qc7 {[%emt 0:00:48]} 6. Be2 {[%emt 0:00:10]} a6 {[%emt 0:00:20]} 7. Nxc6 {[%emt 0:00:25]} Qxc6 {[%emt 0:02:49]} 8. O-O {[%emt 0:00:11]} b5 {[%emt 0:00:08]} 9. Bf3 {[%emt 0:00:09]} Bb7 {[%emt 0:00:30]} 10. a4 {[%emt 0:00:07] axb5 is the strong threat. B47: Sicilian: Taimanov: 5 Nc3 Qc7 6 f4, 6 g3 and 6 Be2.} b4 {[%emt 0:00:49] [#]} 11. Nd5 $146 {[%emt 0:00:07][%cal Of1e1]} ({Predecessor:} 11. Ne2 Ne7 12. Bf4 Ng6 13. Nd4 Qb6 14. a5 Qa7 15. Bg3 Be7 16. Re1 O-O 17. Qd2 Rac8 {½-½ (41) Polgar,I-Lengyel,L Budapest 1971}) 11... Bc5 {[%emt 0:03:24] [#]} ({Don't play} 11... exd5 12. exd5 Qd6 13. Re1+ Be7 14. c4 $11) 12. Qe1 $1 {[%emt 0:03:10][%cal Oc1f4] White is slightly better.} a5 {[%emt 0:07:28] [#]} 13. Bf4 $1 {[%emt 0:01:27]} d6 {[%emt 0:11:08] [#]} (13... Kf8 14. Nc7) 14. c3 $1 {[%emt 0:11:21][%cal Rc3b4]} b3 {[%emt 0:05:57] [#]} 15. Be2 {[%emt 0:13:04]} Kf8 {[%emt 0:10:35]} (15... exd5 $2 16. Bb5 dxe4 17. Qxe4+ Ne7 18. Rfe1 $18) 16. Bb5 {[%emt 0:09:50]} Qc8 {[%emt 0:00:07]} 17. Ne3 {[%emt 0:02:53] Threatens to win with Nc4.} (17. Nb4 {simplifies} e5 18. Be3 Bxe3 19. Qxe3 axb4 20. cxb4 Qd8 21. a5) 17... e5 $1 {[%emt 0:05:55]} 18. Bg3 {[%emt 0:01:43]} Bxe4 {[%emt 0:03:05]} 19. f4 {[%emt 0:03:55]} (19. f3 $11 {keeps the balance.} Bc6 20. Bf2) 19... Nf6 $17 {[%emt 0:00:50] aiming for ...Nd5.} 20. fxe5 {[%emt 0:08:16]} Ng4 {[%emt 0:01:16]} (20... Nd5 $1 $17 {[%cal Rd5e3]} 21. Bf2 Nf4) 21. Bf2 $11 {[%emt 0:10:55]} Nxe5 {[%emt 0:06:16] White must now prevent ...h5.} 22. Qe2 {[%emt 0:10:54]} Qe6 {[%emt 0:01:14]} 23. Rad1 {[%emt 0:09:19][%mdl 1024] White has compensation.} (23. Nd1 {simplifies} Bxf2+ 24. Nxf2 Bf5 25. Ne4) 23... Qg6 {[%emt 0:09:49]} 24. Bg3 {[%emt 0:02:22] [#]} (24. Kh1 $11 {was the only way to keep the balance.} h5 25. Bg1 Bxe3 26. Bxe3) 24... h5 $1 $17 {[%emt 0:05:25] And now ...Ng4 would win.} 25. Bf4 {[%emt 0:04:21]} Ng4 $36 {[%emt 0:03:42][%mdl 2048] Black is on the roll. Black is much more active.} 26. Bc4 $2 {[%emt 0:06:47] White does not recover from this.} (26. Rd2 $17) 26... Ra7 {[%emt 0:11:36]} 27. Rd2 {[%emt 0:00:31]} Re7 {[%emt 0:00:44]} 28. Rd4 $2 {[%emt 0:00:55]} (28. Kh1 {is more resistant.}) 28... Bxd4 $19 {[%emt 0:01:24] Black is clearly winning.} (28... Bxg2 29. Qxg2 Kg8 30. Bxb3 $18 (30. Qa8+ $2 Kh7 $19)) 29. cxd4 {[%emt 0:00:01]} Nxe3 {[%emt 0:00:07]} ({Less strong is} 29... Bxg2 30. Qxg2 Ra7 {[#]} 31. Nf5 $1 $18 {[%mdl 512]}) 30. Bxe3 {[%emt 0:00:57]} d5 {[%emt 0:01:36] Weighted Error Value: White=0.53/Black=0.15 (very precise)} 0-1